bitfinex-derivatives/quotes_SOLF0:USTF0_20260105
["timestamp","ask_amount","ask_price","bid_price","bid_amount"]
[1767641254655,6.5072,138.33,138.26,0.31421316]
[1767641255248,101.1816,138.39,138.28,0.31421316]
[1767641255249,6.5066,138.35,138.28,0.31421316]
[1767641255959,101.1572,138.42,138.31,0.31421316]
[1767641256254,101.1254,138.47,138.33,0.31421316]
[1767641256255,101.1277,138.46,138.33,0.31421316]
[1767641256455,6.5026,138.43,138.36,0.31421316]
[1767641256664,101.1277,138.46,138.36,0.31421316]
[1767641256851,101.1254,138.47,138.36,0.31421316]
[1767641257154,6.5008,138.47,138.39,0.31421316]
[1767641257359,101.1254,138.47,138.39,0.31421316]
[1767641257760,6.5013,138.46,138.39,0.31421316]
[1767641258264,6.5003,138.48,138.39,0.31421316]
[1767641258446,101.1088,138.49,138.39,0.31421316]
[1767641258959,85.46,138.51,138.39,0.31421316]
[1767641259147,101.0865,138.52,138.39,0.31421316]
[1767641259549,6.4989,138.51,138.42,0.31421316]
[1767641259952,6.4597396,138.51,138.42,0.31421316]
[1767641260153,6.498,138.53,138.43,0.31421316]
[1767641260559,103.8667706,138.54,138.43,0.31421316]
[1767641260758,2.7949706,138.54,138.44,0.31421316]
[1767641261062,9.2923706,138.54,138.44,0.31421316]
[1767641261265,103.8569706,138.55,138.44,0.31421316]
[1767641261461,2.7949706,138.52,138.44,0.31421316]
[1767641261770,6.4994,138.5,138.44,0.31421316]
[1767641261969,2.7949706,138.52,138.44,0.31421316]
[1767641262564,9.2933706,138.52,138.44,0.31421316]
[1767641263060,6.4984,138.52,138.44,0.31421316]
[1767641263769,9.2933706,138.52,138.44,0.31421316]
[1767641265769,6.4989,138.51,138.44,0.31421316]
[1767641266263,6.4994,138.5,138.41,85.71421316]
[1767641266466,9.2943706,138.5,138.41,0.31421316]
[1767641268957,9.2943706,138.5,138.41,6.81741316]
[1767641269962,6.4999,138.49,138.41,0.31421316]
[1767641270160,2.7949706,138.5,138.41,0.31421316]
[1767641270371,2.7949706,138.48,138.4,85.38]
[1767641271171,9.2951706,138.48,138.4,85.38]
[1767641271369,9.2951706,138.48,138.38,0.31421316]
[1767641271370,2.7949706,138.46,138.38,0.31421316]
[1767641271872,6.5016,138.45,138.38,0.31421316]
[1767641273762,6.5023,138.44,138.38,0.31421316]
[1767641274167,2.7949706,138.44,138.35,0.32251433]
[1767641274474,6.5026,138.43,138.35,0.32251433]
[1767641274674,1.78360846,138.42,138.35,0.32251433]
[1767641275168,6.5026,138.43,138.35,0.32251433]
[1767641275376,6.5026,138.43,138.35,6.82851433]
[1767641275576,6.5031,138.42,138.35,0.32251433]
[1767641276172,8.28590846,138.44,138.35,0.32251433]
[1767641276973,6.5025,138.43,138.35,6.82851433]
[1767641277173,1.78360846,138.42,138.35,0.32251433]
[1767641278372,186.5,138.45,138.35,0.32251433]
[1767641278565,8.28690846,138.42,138.35,0.32251433]
[1767641280169,6.5033,138.42,138.35,0.32251433]
[1767641281474,6.5034,138.41,138.35,0.32251433]
[1767641281777,8.28700846,138.41,138.33,2.1118998]
[1767641282678,101.14,138.45,138.34,0.32829134]
[1767641282679,6.5025,138.43,138.34,0.32829134]
[1767641282879,8.28610846,138.43,138.34,0.32829134]
[1767641283671,8.28610846,138.43,138.35,6.506]
[1767641283871,6.503,138.42,138.35,6.506]
[1767641284477,6.5034,138.41,138.34,0.32829134]
[1767641284676,8.28700846,138.41,138.34,0.32829134]
[1767641284878,6.5039,138.4,138.32,85.68829134]
[1767641286572,6.5039,138.4,138.32,92.19569134]
[1767641288889,6.5039,138.4,138.33,6.507]
[1767641289286,6.5039,138.4,138.33,6.83529134]
[1767641289681,1.78360846,138.39,138.32,85.36]
[1767641289884,1.78360846,138.37,138.31,6.83629134]
[1767641290182,1.78360846,138.37,138.31,0.32829134]
[1767641290483,114.1167,138.48,138.35,0.32829134]
[1767641290672,101.1156,138.48,138.35,0.32829134]
[1767641290877,101.1007,138.5,138.39,0.32829134]
[1767641290878,1.78360846,138.47,138.39,0.32829134]
[1767641291080,1.78360846,138.5,138.41,0.32829134]
[1767641291982,101.0864,138.52,138.41,0.32829134]
[1767641292181,1.78360846,138.5,138.42,6.5028]
[1767641292387,1.78360846,138.5,138.41,0.32829134]
[1767641293489,1.78360846,138.5,138.43,6.5023]
[1767641296181,1.78360846,138.5,138.41,8.6148998]
[1767641297289,1.78360846,138.5,138.42,6.5026]
[1767641297695,1.78360846,138.49,138.42,6.83089134]
[1767641300100,1.78360846,138.49,138.42,0.32829134]
[1767641300490,8.28330846,138.49,138.42,0.32829134]
[1767641300902,6.4997,138.49,138.42,0.32829134]
[1767641301197,8.28330846,138.49,138.42,0.32829134]
[1767641301396,1.78360846,138.47,138.39,0.32829134]
[1767641302292,1.78360846,138.47,138.4,0.32829134]
[1767641302490,1.78360846,138.49,138.4,2.1118998]
[1767641302797,1.78360846,138.49,138.41,0.32829134]
[1767641303597,8.28330846,138.49,138.41,6.83149134]
[1767641305004,1.78360846,138.49,138.42,6.83109134]
[1767641306704,6.4992,138.5,138.43,6.83069134]
[1767641307505,6.4992,138.5,138.43,0.32829134]
[1767641308100,8.28330846,138.49,138.41,13.06749662]
[1767641308308,1.78360846,138.49,138.41,13.39578796]
[1767641308507,1.78360846,138.49,138.41,6.83129134]
[1767641309306,1.78360846,138.49,138.41,13.39578796]
[1767641309509,1.78360846,138.49,138.42,6.5028]
[1767641309814,1.78360846,138.49,138.42,6.83109134]
[1767641310114,6.4995,138.5,138.42,6.83109134]
[1767641310311,8.28310846,138.5,138.42,6.83109134]
[1767641311517,6.4996,138.49,138.42,6.83109134]
[1767641315024,6.5002,138.48,138.42,0.32829134]
[1767641316522,6.5005,138.47,138.42,0.32829134]
[1767641317616,6.5005,138.47,138.41,13.06749662]
[1767641317922,6.5005,138.47,138.4,0.31794307]
[1767641319021,6.5002,138.48,138.42,0.31794307]
[1767641321020,6.5002,138.48,138.41,6.5032]
[1767641322127,6.5002,138.48,138.41,6.82114307]
[1767641324120,85.36,138.49,138.42,6.5026]
[1767641325530,91.8596,138.49,138.42,6.5026]
[1767641325724,1.78360846,138.48,138.41,0.31794307]
[1767641327531,8.28370846,138.48,138.41,6.82124307]
[1767641327928,6.5001,138.48,138.41,6.82124307]
[1767641328129,8.28370846,138.48,138.41,6.82124307]
[1767641328328,6.5007,138.47,138.41,6.5033]
[1767641330832,1.78360846,138.46,138.39,6.88243969]
[1767641331033,1.78360846,138.44,138.37,6.88243969]
[1767641331538,8.28580846,138.44,138.37,6.88243969]
[1767641331733,1.78360846,138.44,138.37,6.56449662]
[1767641331941,1.78360846,138.4,138.35,6.56449662]
[1767641332146,1.78360846,138.38,138.32,6.56449662]
[1767641332438,1.78360846,138.38,138.31,6.56449662]
[1767641332736,1.78360846,138.38,138.31,6.88243969]
[1767641333236,1.78360846,138.38,138.31,0.31794307]
[1767641333550,85.36,138.39,138.31,0.31794307]
[1767641333838,1.78360846,138.38,138.31,6.88243969]
[1767641334142,1.78360846,138.38,138.31,0.31794307]
[1767641334143,8.28850846,138.38,138.31,0.31794307]
[1767641335332,1.78360846,138.36,138.29,6.88272028]
[1767641335526,1.78360846,138.36,138.29,0.31822366]
[1767641336434,1.78360846,138.4,138.32,0.31822366]
[1767641336637,85.36,138.4,138.32,0.31822366]
[1767641337537,85.36,138.4,138.32,6.82572366]
[1767641338335,85.36,138.4,138.3,6.82642366]
[1767641339541,6.505,138.38,138.3,6.82642366]
[1767641340242,6.505,138.38,138.31,0.31822366]
[1767641340441,6.505,138.38,138.3,6.5082]
[1767641340642,189.34960757,138.39,138.29,0.31822366]
[1767641340945,2.78800757,138.39,138.29,0.31822366]
[1767641341342,85.38,138.39,138.31,0.30726887]
[1767641341546,2.78800757,138.37,138.28,0.30726887]
[1767641341834,6.5068,138.34,138.26,33.29322896]
[1767641342039,85.38,138.34,138.26,33.29322896]
[1767641342437,6.5072,138.33,138.26,33.29322896]
[1767641344131,2.78800757,138.33,138.26,32.98596009]
[1767641344737,2.78800757,138.35,138.26,39.80352896]
[1767641344947,85.4,138.34,138.27,0.30726887]
[1767641345744,85.4,138.34,138.26,32.98596009]
[1767641346550,6.5073,138.33,138.26,32.98596009]
[1767641348142,94.71460757,138.35,138.27,0.30726887]
[1767641348443,6.5067,138.34,138.27,0.30726887]
[1767641350833,6.5067,138.34,138.26,39.49626009]
[1767641351644,6.5067,138.34,138.26,39.80352896]
[1767641352939,2.78800757,138.39,138.27,0.30726887]
[1767641353144,85.42,138.38,138.27,0.30726887]
[1767641354542,85.42,138.38,138.31,0.30726887]
[1767641354745,2.78800757,138.41,138.31,0.30726887]
[1767641354946,88.20800757,138.41,138.31,0.30726887]
[1767641355337,101.1716,138.4,138.27,2.78800757]
[1767641355543,103.97040757,138.39,138.28,0.30726887]
[1767641355950,2.78800757,138.37,138.28,0.30726887]
[1767641356550,6.5063,138.35,138.28,6.81636887]
[1767641356753,2.78800757,138.37,138.28,0.30726887]
[1767641357251,6.5067,138.34,138.28,0.30726887]
[1767641357453,2.78800757,138.37,138.28,0.30726887]
[1767641358754,6.506,138.36,138.28,6.81666887]
[1767641360047,6.506,138.36,138.29,6.81606887]
[1767641364155,6.506,138.36,138.3,6.5085]
[1767641368847,2.78800757,138.37,138.26,0.30726887]
[1767641369653,6.5067,138.34,138.27,6.81706887]
[1767641370850,6.5074,138.33,138.27,0.30726887]
[1767641377365,2.78800757,138.32,138.25,6.56449662]
[1767641377551,2.78800757,138.32,138.24,6.89342783]
[1767641377756,2.78800757,138.32,138.23,6.89342783]
[1767641377955,6.509,138.29,138.23,6.89342783]
[1767641378162,6.509,138.29,138.23,0.32893121]
[1767641378557,6.509,138.29,138.22,13.07669662]
[1767641378759,6.509,138.29,138.23,0.32893121]
[1767641379160,6.5096,138.28,138.22,6.56449662]
[1767641379356,101.2266,138.33,138.22,0.32893121]
[1767641379664,5.54074306,138.32,138.23,0.32893121]
[1767641379863,189.45460757,138.33,138.23,0.32893121]
[1767641380065,5.54039905,138.32,138.23,0.32893121]
[1767641380265,189.45460757,138.33,138.23,0.32893121]
[1767641380464,6.509,138.3,138.23,6.84073121]
[1767641381654,6.5079,138.32,138.24,6.84023121]
[1767641381860,6.5079,138.32,138.25,0.32893121]
[1767641383662,6.5079,138.32,138.26,0.32893121]
[1767641387981,6.5079,138.32,138.2,101.3135]
[1767641387982,104.01050757,138.33,138.24,6.56449662]
[1767641388170,104.01050757,138.33,138.23,6.56449662]
[1767641388663,2.78800757,138.29,138.21,6.56449662]
[1767641388867,2.78800757,138.29,138.2,0.32893121]
[1767641388868,88.24800757,138.29,138.2,6.89342783]
[1767641389373,88.24800757,138.29,138.2,0.32893121]
[1767641390673,6.5104,138.26,138.2,0.32893121]
[1767641391074,85.46,138.29,138.2,0.32893121]
[1767641391373,6.5099,138.28,138.21,0.32893121]
[1767641392472,6.5099,138.28,138.21,6.84163121]
[1767641392674,6.5099,138.28,138.22,0.32893121]
[1767641398474,8.29741023,138.28,138.22,0.32893121]
[1767641399276,8.29741023,138.28,138.21,6.5127]
[1767641399575,8.29801023,138.26,138.19,6.5133]
[1767641399775,1.78751023,138.25,138.19,6.5133]
[1767641400469,1.78751023,138.25,138.18,6.90389044]
[1767641400670,1.78751023,138.25,138.18,0.33939382]
[1767641402574,1.78751023,138.25,138.19,6.5136]
[1767641402777,1.78751023,138.25,138.18,0.33939382]
[1767641402980,1.78751023,138.23,138.16,6.89569989]
[1767641403472,101.2568,138.29,138.18,0.33120327]
[1767641403778,1.78751023,138.25,138.18,0.33120327]
[1767641404584,8.29841023,138.25,138.19,6.5136]
[1767641405073,8.29771023,138.27,138.2,6.84430327]
[1767641405870,6.5102,138.27,138.2,6.84430327]
[1767641406075,1.78751023,138.28,138.21,6.84390327]
[1767641407179,1.78751023,138.28,138.19,6.84460327]
[1767641407382,186.7243,138.31,138.19,0.33120327]
[1767641407383,1.78751023,138.26,138.19,0.33120327]
[1767641409682,8.29831023,138.26,138.19,6.84490327]
[1767641410486,6.5098,138.28,138.21,0.33120327]
[1767641410682,1.78751023,138.3,138.21,1.78751023]
[1767641410887,1.78751023,138.3,138.22,0.33120327]
[1767641411098,1.78751023,138.28,138.22,0.33120327]
[1767641411482,1.78751023,138.26,138.2,0.33120327]
[1767641412382,1.78751023,138.28,138.2,6.56449662]
[1767641412584,1.78751023,138.3,138.21,0.33120327]
[1767641413382,6.5091,138.29,138.22,6.5122]
[1767641414091,6.5084,138.31,138.23,6.5117]
[1767641414383,1.78751023,138.3,138.22,0.33120327]
[1767641414587,1.78751023,138.28,138.21,6.56449662]
[1767641414782,1.78751023,138.28,138.2,13.40889989]
[1767641414783,8.29701023,138.28,138.2,13.40889989]
[1767641415290,8.29701023,138.28,138.21,6.56449662]
[1767641415490,6.51,138.27,138.2,13.40889989]
[1767641416887,6.5094,138.29,138.22,0.33120327]
[1767641417096,1.78751023,138.3,138.22,0.33120327]
[1767641418793,6.5095,138.28,138.22,0.33120327]
[1767641419794,6.5095,138.28,138.22,6.89569989]
[1767641420496,8.29651023,138.3,138.22,13.40799989]
[1767641420996,1.78751023,138.3,138.22,13.40799989]
[1767641421493,1.78751023,138.3,138.22,6.89569989]
[1767641421692,1.78751023,138.3,138.22,0.33120327]
[1767641422393,6.509,138.29,138.22,0.33120327]
[1767641422590,8.29651023,138.29,138.22,6.89569989]
[1767641426795,6.509,138.29,138.23,0.33120327]
[1767641427694,6.5084,138.31,138.24,6.89569989]
[1767641429193,93.77501023,138.33,138.26,0.33120327]
[1767641429791,6.5075,138.33,138.27,6.89569989]
[1767641430186,1.78751023,138.35,138.27,6.89569989]
[1767641430391,1.78751023,138.35,138.27,0.33120327]
[1767641430699,1.78751023,138.33,138.26,6.56449662]
[1767641431699,6.5076,138.32,138.26,6.56449662]
[1767641432793,6.5069,138.34,138.27,0.33171261]
[1767641432989,87.26751023,138.37,138.27,6.89620923]
[1767641434092,1.78751023,138.37,138.29,0.33171261]
[1767641434493,1.78751023,138.37,138.29,6.89620923]
[1767641434892,8.29291023,138.37,138.29,6.84061261]
[1767641435103,1.78751023,138.37,138.28,6.56449662]
[1767641435302,1.78751023,138.37,138.27,6.89620923]
[1767641436608,8.29371023,138.35,138.27,13.40580923]
[1767641437509,8.29371023,138.35,138.28,0.33171261]
[1767641437801,8.29291023,138.37,138.29,0.33171261]
[1767641438103,85.46,138.38,138.29,6.56449662]
[1767641438405,85.46,138.38,138.3,0.33171261]
[1767641438905,1.78751023,138.41,138.32,0.33171261]
[1767641439297,1.78751023,138.41,138.3,6.56449662]
[1767641439298,1.78751023,138.39,138.3,6.89620923]
[1767641439604,8.29281023,138.37,138.3,6.89620923]
[1767641439798,8.29281023,138.37,138.3,0.33171261]
[1767641442299,6.5053,138.37,138.3,0.33171261]
[1767641442902,1.78751023,138.38,138.28,85.77171261]
[1767641442903,1.78751023,138.36,138.28,85.77171261]
[1767641443103,1.78751023,138.37,138.28,85.77171261]
[1767641443298,6.506,138.36,138.29,6.84051261]
[1767641443502,1.78751023,138.38,138.3,0.33171261]
[1767641444104,6.5054,138.37,138.3,0.33171261]
[1767641446005,6.5054,138.37,138.3,6.84021261]
[1767641447609,6.5058,138.36,138.3,0.33171261]
[1767641447907,8.29331023,138.36,138.3,0.33171261]
[1767641449507,8.29271023,138.38,138.3,6.84021261]
[1767641449810,1.78751023,138.38,138.3,6.84021261]
[1767641450717,1.78751023,138.38,138.3,0.33171261]
[1767641451014,1.78751023,138.36,138.3,0.33171261]
[1767641451616,8.29321023,138.36,138.3,0.33171261]
[1767641453518,6.5051,138.38,138.3,6.84011261]
[1767641454111,6.5052,138.37,138.3,6.84011261]
[1767641455221,6.5048,138.38,138.31,6.82441445]
[1767641455617,1.78751023,138.37,138.31,0.31641445]
[1767641456512,8.29281023,138.37,138.31,0.31641445]
[1767641458327,6.5053,138.37,138.31,0.31641445]
[1767641458522,6.5053,138.37,138.3,6.5085]
[1767641458523,6.5046,138.39,138.32,0.31641445]
[1767641459018,6.5048,138.38,138.32,0.31641445]
[1767641460323,6.5053,138.37,138.3,6.82491445]
[1767641460725,6.5053,138.37,138.31,0.31641445]
[1767641460931,6.5047,138.39,138.31,6.82441445]
[1767641461228,2.78799891,138.43,138.31,0.31641445]
[1767641461430,88.20799891,138.43,138.31,0.31641445]
[1767641462629,6.5042,138.4,138.33,6.507]
[1767641464831,6.5042,138.4,138.33,6.82385391]
[1767641467739,88.20799891,138.43,138.34,6.82335391]
[1767641469631,2.78799891,138.45,138.35,0.31685391]
[1767641470733,101.1148,138.48,138.37,0.31685391]
[1767641471037,2.78799891,138.45,138.37,0.31685391]
[1767641471435,6.5026,138.43,138.37,0.31685391]
[1767641472635,6.5029,138.42,138.35,6.88135053]
[1767641473340,2.78799891,138.41,138.33,0.31685391]
[1767641473940,2.78799891,138.39,138.29,0.31685391]
[1767641475241,6.5057,138.36,138.29,0.31685391]
[1767641476434,6.5057,138.36,138.29,6.82585391]
[1767641477442,2.78799891,138.35,138.26,8.69610661]
[1767641477639,2.78799891,138.35,138.25,0.31685391]
[1767641478046,9.29519891,138.33,138.25,0.31685391]
[1767641479142,6.5077,138.32,138.25,0.31685391]
[1767641479542,2.78799891,138.33,138.22,195.39650661]
[1767641479543,2.78799891,138.33,138.23,0.31685391]
[1767641479743,6.5086,138.3,138.23,0.31685391]
[1767641480542,2.78799891,138.31,138.23,0.31685391]
[1767641481647,9.29619891,138.31,138.23,0.31685391]
[1767641484250,9.29619891,138.31,138.23,6.82855391]
[1767641484447,9.29539891,138.33,138.23,0.31685391]
[1767641484640,2.78799891,138.33,138.23,0.31685391]
[1767641485551,6.5077,138.32,138.24,6.5112]
[1767641485753,2.78799891,138.31,138.23,0.31685391]
[1767641485952,2.78799891,138.29,138.2,0.31685391]
[1767641488354,9.29729891,138.29,138.21,0.31685391]
[1767641489651,9.29729891,138.29,138.21,6.82955391]
[1767641490057,6.5093,138.29,138.21,6.82955391]
[1767641491450,6.5095,138.28,138.21,0.31685391]
[1767641491650,85.44,138.3,138.21,0.31685391]
[1767641491849,6.5091,138.29,138.21,6.82955391]
[1767641492558,6.5083,138.31,138.23,0.32716107]
[1767641492762,85.46,138.35,138.23,0.32716107]
[1767641493455,104.00679891,138.34,138.23,0.32716107]
[1767641493653,2.78799891,138.32,138.23,0.32716107]
[1767641494165,104.03589891,138.3,138.2,0.32716107]
[1767641494358,85.46,138.29,138.17,0.32716107]
[1767641495566,6.51,138.27,138.2,6.5132]
[1767641495862,6.51,138.27,138.2,6.84036107]
[1767641497950,6.51,138.27,138.2,0.32716107]
[1767641499966,6.5109,138.25,138.17,0.32716107]
[1767641500356,6.5104,138.27,138.18,6.84106107]
[1767641500554,88.24799891,138.28,138.18,6.84106107]
[1767641501565,189.51039891,138.28,138.18,0.32716107]
[1767641501862,101.2893,138.24,138.16,0.32716107]
[1767641502562,6.5122,138.23,138.16,0.32716107]
[1767641502956,85.48,138.25,138.16,0.32716107]
[1767641503157,186.764,138.25,138.16,0.32716107]
[1767641504162,101.2963,138.23,138.13,0.32716107]
[1767641505263,6.5134,138.2,138.13,0.32716107]
[1767641505658,6.514,138.19,138.13,0.32716107]
[1767641506363,85.48,138.21,138.1,0.32716107]
[1767641506364,2.78799891,138.2,138.1,0.32716107]
[1767641507666,6.5147,138.17,138.1,6.84496107]
[1767641509071,6.5141,138.19,138.11,0.32716107]
[1767641509265,6.5141,138.19,138.11,6.84456107]
[1767641509662,186.7952,138.21,138.11,6.84456107]
[1767641510569,6.5143,138.18,138.11,6.84456107]
[1767641511176,6.5136,138.2,138.13,0.32716107]
[1767641511379,186.7812,138.25,138.13,0.32716107]
[1767641512589,6.5126,138.22,138.15,6.84266107]
[1767641513388,6.5129,138.21,138.13,6.84326107]
[1767641514186,6.5129,138.21,138.14,6.516]
[1767641515086,6.5129,138.21,138.14,6.83878087]
[1767641516793,6.5129,138.21,138.14,0.32278087]
[1767641520393,6.5129,138.21,138.14,6.83878087]
[1767641520782,1.78904696,138.22,138.14,0.32278087]
[1767641521388,85.52,138.24,138.14,0.32278087]
[1767641521389,87.30904696,138.24,138.14,0.32278087]
[1767641521589,6.5124,138.22,138.16,0.3326159]
[1767641522299,8.30144696,138.22,138.15,6.5154]
[1767641523792,1.78904696,138.2,138.11,0.3326159]
[1767641525499,6.5144,138.18,138.11,0.3326159]
[1767641525999,101.3035,138.22,138.14,6.8487159]
[1767641526000,6.5128,138.21,138.14,6.8487159]
[1767641526794,1.78904696,138.2,138.12,6.5166]
[1767641526995,1.78904696,138.2,138.12,6.8492159]
[1767641527198,1.78904696,138.22,138.13,0.3326159]
[1767641527399,1.78904696,138.22,138.13,6.8488159]
[1767641527597,1.78904696,138.2,138.13,0.3326159]
[1767641527797,6.5138,138.19,138.13,0.3326159]
[1767641528198,1.78904696,138.2,138.13,0.3326159]
[1767641528401,1.78904696,138.2,138.1,0.3326159]
[1767641529002,1.78904696,138.18,138.1,0.3326159]
[1767641529605,6.5147,138.17,138.11,6.5172]
[1767641531302,6.5147,138.17,138.1,0.3326159]
[1767641532705,1.78904696,138.18,138.1,0.3326159]
[1767641534205,6.5157,138.15,138.1,0.3326159]
[1767641534808,1.78904696,138.16,138.07,91.999]
[1767641535003,1.78904696,138.14,138.07,85.48]
[1767641535310,1.78904696,138.16,138.08,0.3326159]
[1767641535907,85.52,138.17,138.07,85.48]
[1767641535908,6.515,138.17,138.09,0.3326159]
[1767641536109,6.515,138.17,138.1,0.3326159]
[1767641537615,6.515,138.17,138.1,6.8504159]
[1767641538212,8.30424696,138.16,138.1,0.3326159]
[1767641538416,1.78904696,138.16,138.08,6.8512159]
[1767641539005,6.5163,138.14,138.08,0.3326159]
[1767641539307,1.78904696,138.16,138.08,0.3326159]
[1767641539503,101.2901,138.24,138.1,0.3326159]
[1767641539504,8.30364696,138.18,138.1,0.3326159]
[1767641539708,1.78904696,138.18,138.1,0.3326159]
[1767641540316,1.78904696,138.2,138.1,0.3326159]
[1767641540710,6.5138,138.19,138.12,6.5169]
[1767641544117,6.5142,138.18,138.1,8.63926286]
[1767641544707,1.78904696,138.18,138.1,6.8502159]
[1767641544913,6.5147,138.17,138.1,6.8502159]
[1767641549623,8.30424696,138.16,138.1,0.3326159]
[1767641549827,1.78904696,138.16,138.08,8.69610661]
[1767641550119,1.78904696,138.16,138.08,9.02872251]
[1767641550314,1.78904696,138.16,138.09,0.3326159]
[1767641550723,1.78904696,138.17,138.09,0.3326159]
[1767641551723,6.5155,138.16,138.09,6.8509159]
[1767641552626,8.30464696,138.15,138.09,0.3326159]
[1767641553518,6.5161,138.14,138.07,100.75510661]
[1767641553927,6.5166,138.13,138.07,100.75510661]
[1767641554127,6.5166,138.13,138.07,92.059]
[1767641555135,6.5166,138.13,138.07,92.39755645]
[1767641556228,6.5166,138.13,138.07,6.85755645]
[1767641556430,6.5171,138.12,138.07,0.33855645]
[1767641557839,6.5171,138.12,138.06,6.5196]
[1767641558940,6.5171,138.12,138.05,9.03466306]
[1767641559838,6.5175,138.11,138.05,15.55496306]
[1767641560026,1.78904696,138.11,138.03,42.86435506]
[1767641560226,6.5168,138.13,138.06,0.33855645]
[1767641560532,1.78904696,138.13,138.06,0.33855645]
[1767641560929,1.78904696,138.12,138.06,0.33855645]
[1767641561535,8.30604696,138.12,138.06,0.33855645]
[1767641561738,6.517,138.12,138.06,0.33855645]
[1767641562332,1.78904696,138.13,138.06,0.33855645]
[1767641563636,8.30564696,138.13,138.06,0.33855645]
[1767641566833,6.5166,138.13,138.06,0.33855645]
[1767641568145,6.5166,138.13,138.06,6.85835645]
[1767641569941,92.056,138.15,138.08,0.33855645]
[1767641570142,6.516,138.15,138.08,0.33855645]
[1767641570746,1.78904696,138.14,138.08,0.33855645]
[1767641571145,1.78904696,138.14,138.06,85.89855645]
[1767641572747,6.5165,138.13,138.06,92.41835645]
[1767641575842,6.5165,138.13,138.07,0.31463606]
[1767641576959,6.5159,138.15,138.09,0.31463606]
[1767641577147,101.2982,138.23,138.12,0.31463606]
[1767641577451,6.5127,138.22,138.14,6.83053606]
[1767641577648,6.5127,138.22,138.15,0.31463606]
[1767641578049,1.78904696,138.23,138.15,0.31463606]
[1767641578251,6.5117,138.24,138.16,0.31463606]
[1767641578550,92.0709,138.25,138.16,0.31463606]
[1767641578745,92.0709,138.25,138.17,6.82923606]
[1767641579250,6.5114,138.24,138.17,6.82923606]
[1767641579448,1.78904696,138.24,138.15,6.82983606]
[1767641580045,6.5124,138.22,138.15,6.82983606]
[1767641580747,6.5118,138.24,138.16,6.82953606]
[1767641580947,2.79499497,138.28,138.16,0.31463606]
[1767641581147,186.8127,138.29,138.17,0.31812676]
[1767641581550,2.79499497,138.3,138.19,0.31812676]
[1767641581756,101.252,138.29,138.19,0.31812676]
[1767641582450,6.5105,138.26,138.19,0.31812676]
[1767641582650,101.2738,138.26,138.16,0.31812676]
[1767641582850,101.282,138.25,138.16,0.31812676]
[1767641583158,6.5124,138.22,138.14,6.5158]
[1767641584454,6.5131,138.21,138.13,85.85812676]
[1767641584850,101.2999,138.23,138.13,85.85812676]
[1767641585561,6.5135,138.2,138.13,85.85812676]
[1767641588060,6.5127,138.22,138.13,85.85812676]
[1767641588962,6.5127,138.22,138.14,0.31812676]
[1767641589661,6.5117,138.24,138.15,0.31812676]
[1767641590055,101.3036,138.22,138.12,0.31812676]
[1767641590253,101.3036,138.22,138.1,6.5176]
[1767641590254,6.5143,138.18,138.1,6.5176]
[1767641590461,6.5143,138.18,138.1,6.83572676]
[1767641590860,92.0335,138.2,138.11,6.83552676]
[1767641591360,92.0335,138.2,138.09,85.52]
[1767641591361,92.0335,138.2,138.12,0.31812676]
[1767641591664,85.52,138.2,138.13,0.31812676]
[1767641593054,186.8413,138.2,138.1,0.31812676]
[1767641593262,6.5149,138.17,138.1,0.31812676]
[1767641594266,6.514,138.19,138.11,0.31812676]
[1767641594764,85.52,138.2,138.11,0.31812676]
[1767641595361,6.5141,138.19,138.11,0.31812676]
[1767641595557,6.5141,138.19,138.11,6.83542676]
[1767641599585,6.5131,138.21,138.14,0.31812676]
[1767641600663,6.5131,138.21,138.14,6.83412676]
[1767641604575,101.2988,138.23,138.12,6.5168]
[1767641604770,51.8947164,190.08,138.14,0.31812676]
[1767641604771,101.2619,138.28,138.14,0.31812676]
[1767641604965,186.7819,138.28,138.17,7.7887157]
[1767641605173,6.5111,138.25,138.18,6.83222676]
[1767641605373,85.52,138.28,138.18,6.83222676]
[1767641606171,101.218,138.34,138.22,0.31812676]
[1767641606679,6.508,138.32,138.25,6.82892676]
[1767641606879,85.52,138.35,138.25,14.61764246]
[1767641607281,6.5072,138.33,138.25,14.61764246]
[1767641607876,85.52,138.35,138.27,0.31812676]
[1767641608277,6.5055,138.37,138.27,0.31812676]
[1767641608582,108.93253284,138.4,138.29,8.10684246]
[1767641608767,108.93253284,138.4,138.29,14.61574246]
[1767641609280,6.5049,138.38,138.29,14.61574246]
[1767641609579,6.5049,138.38,138.29,8.10684246]
[1767641612379,6.5041,138.4,138.3,0.32996076]
[1767641613579,6.5041,138.4,138.31,6.83776076]